[Event "Early-Titled-Tuesday-Blitz-June-18-2024"]
[Site "Chess.com"]
[Date "2024.06.18"]
[Round "6"]
[White "Gumugama"]
[Black "ShahMatKanal"]
[Result "0-1"]
[WhiteElo "2270"]
[BlackElo "2474"]
[TimeControl "180+1"]
[EndTime "9:10:10 PDT"]
[Termination "ShahMatKanal won by resignation"]

1. e4 {[%clk 0:03:00.9]} 1... c6 {[%clk 0:02:59.1]} 2. Nf3 {[%clk 0:02:59.8]}
2... d5 {[%clk 0:02:59.1]} 3. Nc3 {[%clk 0:03:00.4]} 3... g6 {[%clk 0:02:55.6]}
4. d4 {[%clk 0:02:58.9]} 4... h5 {[%clk 0:02:47.4]} 5. Bd3 {[%clk 0:02:56.1]}
5... Nh6 {[%clk 0:02:38.8]} 6. h3 {[%clk 0:02:54.7]} 6... Bg7 {[%clk 0:02:35.8]}
7. e5 {[%clk 0:02:53.5]} 7... Bf5 {[%clk 0:02:32.3]} 8. Ne2 {[%clk 0:02:52.3]}
8... Bxd3 {[%clk 0:02:31.8]} 9. Qxd3 {[%clk 0:02:52.7]} 9... e6 {[%clk
0:02:22.5]} 10. Bg5 {[%clk 0:02:47.1]} 10... Qa5+ {[%clk 0:02:19.7]} 11. c3
{[%clk 0:02:41.4]} 11... Qa6 {[%clk 0:02:07.5]} 12. Qd2 {[%clk 0:02:37]} 12...
Nd7 {[%clk 0:02:05]} 13. O-O {[%clk 0:02:28.7]} 13... c5 {[%clk 0:01:50.2]} 14.
b4 {[%clk 0:02:25.1]} 14... cxd4 {[%clk 0:01:47.8]} 15. cxd4 {[%clk 0:02:25.9]}
15... Nb6 {[%clk 0:01:40.7]} 16. a4 {[%clk 0:02:19]} 16... Nc4 {[%clk 0:01:40]}
17. Qd3 {[%clk 0:02:14.5]} 17... O-O {[%clk 0:01:33.7]} 18. b5 {[%clk
0:02:12.6]} 18... Qb6 {[%clk 0:01:31.2]} 19. Nf4 {[%clk 0:02:12]} 19... Qc7
{[%clk 0:00:58.8]} 20. Rfc1 {[%clk 0:01:53.5]} 20... Rac8 {[%clk 0:00:56.7]} 21.
g3 {[%clk 0:01:33.3]} 21... a6 {[%clk 0:00:47.8]} 22. Kg2 {[%clk 0:01:31.7]}
22... axb5 {[%clk 0:00:46.6]} 23. axb5 {[%clk 0:01:32.6]} 23... Ra8 {[%clk
0:00:46.5]} 24. Rxa8 {[%clk 0:01:27.1]} 24... Rxa8 {[%clk 0:00:47.4]} 25. Nxg6
{[%clk 0:01:20.8]} 25... fxg6 {[%clk 0:00:46.1]} 26. Qxg6 {[%clk 0:01:21.3]}
26... Qf7 {[%clk 0:00:43.3]} 27. Qd3 {[%clk 0:01:19]} 27... Ra3 {[%clk
0:00:40.9]} 28. Qe2 {[%clk 0:01:17.7]} 28... Nf5 {[%clk 0:00:34.8]} 29. Bf4
{[%clk 0:01:16.8]} 29... h4 {[%clk 0:00:33.2]} 30. Ng5 {[%clk 0:01:15.3]} 30...
Qg6 {[%clk 0:00:29.9]} 31. Rxc4 {[%clk 0:01:07.9]} 31... dxc4 {[%clk 0:00:29]}
32. Qxc4 {[%clk 0:01:08.4]} 32... hxg3 {[%clk 0:00:23.2]} 33. fxg3 {[%clk
0:01:08.5]} 33... Ra8 {[%clk 0:00:15.6]} 34. Nxe6 {[%clk 0:01:06.6]} 34... Qxg3+
{[%clk 0:00:14.2]} 35. Bxg3 {[%clk 0:01:05]} 35... Ne3+ {[%clk 0:00:14.2]} 36.
Kf3 {[%clk 0:01:05.9]} 36... Nxc4 {[%clk 0:00:14.4]} 37. Ke4 {[%clk 0:01:02.5]}
37... Nb6 {[%clk 0:00:13.2]} 38. Nc7 {[%clk 0:01:00.8]} 38... Ra2 {[%clk
0:00:11.8]} 39. e6 {[%clk 0:00:58.4]} 39... Bf8 {[%clk 0:00:11.9]} 40. d5 {[%clk
0:00:55.9]} 40... Re2+ {[%clk 0:00:11.7]} 41. Kd3 {[%clk 0:00:36.7]} 41... Rg2
{[%clk 0:00:11.3]} 42. Be5 {[%clk 0:00:30.2]} 42... Nc8 {[%clk 0:00:11]} 43. Ne8
{[%clk 0:00:28]} 43... Kh7 {[%clk 0:00:08.8]} 44. Nf6+ {[%clk 0:00:27.6]} 44...
Kg6 {[%clk 0:00:08.2]} 45. Nd7 {[%clk 0:00:19.2]} 45... Bd6 {[%clk 0:00:06.8]}
46. Bd4 {[%clk 0:00:15.7]} 46... Rg3+ {[%clk 0:00:06.5]} 47. Ke4 {[%clk
0:00:15.4]} 47... Rxh3 {[%clk 0:00:07.4]} 48. Be5 {[%clk 0:00:13.8]} 48... Bxe5
{[%clk 0:00:06.9]} 49. Kxe5 {[%clk 0:00:14.2]} 49... Re3+ {[%clk 0:00:06.9]} 50.
Kd4 {[%clk 0:00:14.1]} 50... Re1 {[%clk 0:00:07.8]} 51. Kc5 {[%clk 0:00:14]}
51... Rc1+ {[%clk 0:00:06.9]} 52. Kd4 {[%clk 0:00:13.6]} 52... Kf5 {[%clk
0:00:07]} 53. Nc5 {[%clk 0:00:08.9]} 53... b6 {[%clk 0:00:06.9]} 54. Nd7 {[%clk
0:00:08.7]} 54... Rb1 {[%clk 0:00:06.6]} 55. Kc4 {[%clk 0:00:08.3]} 55... Ke4
{[%clk 0:00:05.5]} 56. Nf6+ {[%clk 0:00:07.5]} 56... Ke5 {[%clk 0:00:05.6]} 57.
Ne8 {[%clk 0:00:07.5]} 57... Nd6+ {[%clk 0:00:04.6]} 58. Nxd6 {[%clk 0:00:07]}
58... Kxd6 {[%clk 0:00:05.5]} 59. Kd4 {[%clk 0:00:07]} 59... Rxb5 {[%clk
0:00:05.4]} 60. Kc4 {[%clk 0:00:07.7]} 60... Rc5+ {[%clk 0:00:05.4]} 61. Kd4
{[%clk 0:00:08]} 61... Rxd5+ {[%clk 0:00:05.8]} 0-1

[Event "Early-Titled-Tuesday-Blitz-June-18-2024"]
[Site "Chess.com"]
[Date "2024.06.18"]
[Round "6"]
[White "MarlonJodar"]
[Black "FerAsensio2024"]
[Result "1/2-1/2"]
[WhiteElo "2362"]
[BlackElo "2525"]
[TimeControl "180+1"]
[EndTime "9:10:12 PDT"]
[Termination "Game drawn by repetition"]

1. e4 {[%clk 0:02:52.8]} 1... c6 {[%clk 0:02:59.6]} 2. d4 {[%clk 0:02:52.5]}
2... d5 {[%clk 0:03:00.5]} 3. Nc3 {[%clk 0:02:52.7]} 3... dxe4 {[%clk
0:03:00.7]} 4. Nxe4 {[%clk 0:02:53.6]} 4... Nf6 {[%clk 0:03:01.4]} 5. Nxf6+
{[%clk 0:02:54]} 5... exf6 {[%clk 0:03:02.3]} 6. c3 {[%clk 0:02:49.6]} 6... Bd6
{[%clk 0:03:02.6]} 7. Bd3 {[%clk 0:02:36.9]} 7... Qc7 {[%clk 0:03:00.1]} 8. Ne2
{[%clk 0:02:34]} 8... O-O {[%clk 0:02:56.8]} 9. Qc2 {[%clk 0:02:33.2]} 9... h5
{[%clk 0:02:57.2]} 10. Be3 {[%clk 0:02:32.6]} 10... Re8 {[%clk 0:02:54.8]} 11.
O-O-O {[%clk 0:02:31.2]} 11... Be6 {[%clk 0:02:53.9]} 12. Kb1 {[%clk 0:02:26.2]}
12... Nd7 {[%clk 0:02:53]} 13. h3 {[%clk 0:02:26.7]} 13... Nf8 {[%clk
0:02:45.4]} 14. g4 {[%clk 0:02:19.4]} 14... h4 {[%clk 0:02:41.3]} 15. Rhg1
{[%clk 0:02:15]} 15... Bh2 {[%clk 0:02:38.3]} 16. Rg2 {[%clk 0:01:29.4]} 16...
Bd5 {[%clk 0:02:38.3]} 17. Rdg1 {[%clk 0:00:30.9]} 17... Bxg2 {[%clk 0:01:43.2]}
18. Rxg2 {[%clk 0:00:31.8]} 18... Ne6 {[%clk 0:01:41.6]} 19. Ng1 {[%clk
0:00:16.4]} 19... Bf4 {[%clk 0:01:09.3]} 20. Nf3 {[%clk 0:00:16.1]} 20... Ng5
{[%clk 0:01:00.6]} 21. Nxh4 {[%clk 0:00:14.7]} 21... Bxe3 {[%clk 0:00:57]} 22.
fxe3 {[%clk 0:00:15.6]} 22... Rxe3 {[%clk 0:00:57.4]} 23. Rg1 {[%clk 0:00:15.3]}
23... Rae8 {[%clk 0:00:55.9]} 24. a3 {[%clk 0:00:13.8]} 24... Re1+ {[%clk
0:00:27.6]} 25. Rxe1 {[%clk 0:00:14]} 25... Rxe1+ {[%clk 0:00:28.5]} 26. Ka2
{[%clk 0:00:14.5]} 26... Qf4 {[%clk 0:00:18]} 27. Nf5 {[%clk 0:00:14.2]} 27...
Qc1 {[%clk 0:00:14.4]} 28. Qa4 {[%clk 0:00:12.3]} 28... Qa1+ {[%clk 0:00:07.4]}
29. Kb3 {[%clk 0:00:12.9]} 29... Qd1+ {[%clk 0:00:06.4]} 30. Bc2 {[%clk
0:00:13.3]} 30... Qe2 {[%clk 0:00:05.2]} 31. Qxa7 {[%clk 0:00:13.5]} 31... Qe6+
{[%clk 0:00:03.5]} 32. c4 {[%clk 0:00:12.4]} 32... Re3+ {[%clk 0:00:02.2]} 33.
Ka2 {[%clk 0:00:09.5]} 33... g6 {[%clk 0:00:02.5]} 34. Qb8+ {[%clk 0:00:08.4]}
34... Kh7 {[%clk 0:00:03.1]} 35. Nxe3 {[%clk 0:00:07.7]} 35... Qxe3 {[%clk
0:00:02.6]} 36. h4 {[%clk 0:00:07.6]} 36... Ne4 {[%clk 0:00:02.3]} 37. Bxe4
{[%clk 0:00:06.2]} 37... Qxe4 {[%clk 0:00:03.2]} 38. Qd6 {[%clk 0:00:06.4]}
38... Qxg4 {[%clk 0:00:02.4]} 39. Qxf6 {[%clk 0:00:06.9]} 39... Qd7 {[%clk
0:00:02.3]} 40. Qe5 {[%clk 0:00:05.7]} 40... Kg8 {[%clk 0:00:01.7]} 41. d5
{[%clk 0:00:05.7]} 41... cxd5 {[%clk 0:00:01.6]} 42. cxd5 {[%clk 0:00:06.6]}
42... Kh7 {[%clk 0:00:01.7]} 43. h5 {[%clk 0:00:05]} 43... gxh5 {[%clk
0:00:01.8]} 44. Qxh5+ {[%clk 0:00:05.9]} 44... Kg7 {[%clk 0:00:02.5]} 45. Qe5+
{[%clk 0:00:06.5]} 45... Kf8 {[%clk 0:00:03.2]} 46. d6 {[%clk 0:00:06.3]} 46...
Qc6 {[%clk 0:00:02.5]} 47. Kb3 {[%clk 0:00:05.7]} 47... Kg8 {[%clk 0:00:02.1]}
48. Qg5+ {[%clk 0:00:05.5]} 48... Kf8 {[%clk 0:00:02.1]} 49. Qe7+ {[%clk
0:00:05.6]} 49... Kg8 {[%clk 0:00:02.6]} 50. Qe5 {[%clk 0:00:05.6]} 50... Kh7
{[%clk 0:00:02.4]} 51. Ka2 {[%clk 0:00:05.9]} 51... Kg6 {[%clk 0:00:02.8]} 52.
Qd4 {[%clk 0:00:04.9]} 52... Qd7 {[%clk 0:00:02.9]} 53. Qe5 {[%clk 0:00:03.4]}
53... b5 {[%clk 0:00:01.8]} 54. b3 {[%clk 0:00:02.2]} 54... f6 {[%clk
0:00:01.5]} 55. Qe7 {[%clk 0:00:02.1]} 55... Qc6 {[%clk 0:00:02.1]} 56. d7
{[%clk 0:00:02]} 56... Qc2+ {[%clk 0:00:02.4]} 57. Ka1 {[%clk 0:00:02.8]} 57...
Qc1+ {[%clk 0:00:03.1]} 58. Ka2 {[%clk 0:00:03.1]} 58... Qc2+ {[%clk 0:00:03.8]}
59. Ka1 {[%clk 0:00:04]} 59... Qc1+ {[%clk 0:00:04.3]} 60. Ka2 {[%clk
0:00:04.9]} 60... Qc2+ {[%clk 0:00:04.9]} 1/2-1/2

[Event "Early-Titled-Tuesday-Blitz-June-18-2024"]
[Site "Chess.com"]
[Date "2024.06.18"]
[Round "6"]
[White "Guldona_2007"]
[Black "rookpower2004"]
[Result "0-1"]
[WhiteElo "2264"]
[BlackElo "2471"]
[TimeControl "180+1"]
[EndTime "9:10:12 PDT"]
[Termination "rookpower2004 won by checkmate"]

1. e4 {[%clk 0:03:00]} 1... e5 {[%clk 0:02:57.9]} 2. Nf3 {[%clk 0:02:59.9]} 2...
Nc6 {[%clk 0:02:56.5]} 3. Bb5 {[%clk 0:02:59.9]} 3... a6 {[%clk 0:02:55.4]} 4.
Ba4 {[%clk 0:02:59.7]} 4... Nf6 {[%clk 0:02:56]} 5. Nc3 {[%clk 0:02:59.4]} 5...
b5 {[%clk 0:02:55.1]} 6. Bb3 {[%clk 0:02:57.6]} 6... d6 {[%clk 0:02:33.9]} 7.
Ng5 {[%clk 0:02:56.6]} 7... Be6 {[%clk 0:02:24.9]} 8. Nxe6 {[%clk 0:02:50.5]}
8... fxe6 {[%clk 0:02:25.8]} 9. Bxe6 {[%clk 0:02:51]} 9... Nd4 {[%clk
0:02:21.9]} 10. Bb3 {[%clk 0:02:44.6]} 10... b4 {[%clk 0:02:08.8]} 11. Nd5
{[%clk 0:02:28.9]} 11... Nxe4 {[%clk 0:01:54.1]} 12. Nxb4 {[%clk 0:02:07.4]}
12... Nxb3 {[%clk 0:01:47]} 13. axb3 {[%clk 0:02:06.1]} 13... Nxf2 {[%clk
0:01:46]} 14. Qf3 {[%clk 0:01:24]} 14... Nxh1 {[%clk 0:01:40.8]} 15. Qc6+ {[%clk
0:01:23.6]} 15... Ke7 {[%clk 0:01:36.8]} 16. Nd5+ {[%clk 0:01:21.3]} 16... Kf7
{[%clk 0:01:30.2]} 17. Nxc7 {[%clk 0:01:18.6]} 17... Qh4+ {[%clk 0:01:19.7]} 18.
g3 {[%clk 0:01:14.7]} 18... Nxg3 {[%clk 0:01:18.7]} 19. Qd5+ {[%clk 0:01:01.7]}
19... Kg6 {[%clk 0:01:13.3]} 20. Qe6+ {[%clk 0:00:39.5]} 20... Kh5 {[%clk
0:01:08.6]} 21. Qf7+ {[%clk 0:00:35.8]} 21... g6 {[%clk 0:01:07.7]} 22. Qf3+
{[%clk 0:00:25.5]} 22... Qg4 {[%clk 0:01:07.3]} 23. Qxg4+ {[%clk 0:00:19.2]}
23... Kxg4 {[%clk 0:01:08.2]} 24. Nxa8 {[%clk 0:00:18.6]} 24... Nf5 {[%clk
0:01:06.7]} 25. Rxa6 {[%clk 0:00:18.6]} 25... Be7 {[%clk 0:01:03.8]} 26. Nc7
{[%clk 0:00:18]} 26... Kh3 {[%clk 0:00:54.9]} 27. d3 {[%clk 0:00:13.9]} 27...
Kxh2 {[%clk 0:00:53.9]} 28. Nd5 {[%clk 0:00:13.9]} 28... Bh4+ {[%clk 0:00:47]}
29. Kd1 {[%clk 0:00:14.5]} 29... h5 {[%clk 0:00:41.8]} 30. Ne3 {[%clk
0:00:14.7]} 30... Nxe3+ {[%clk 0:00:39]} 31. Bxe3 {[%clk 0:00:15.3]} 31... g5
{[%clk 0:00:32.4]} 32. Rxd6 {[%clk 0:00:15.2]} 32... g4 {[%clk 0:00:28.9]} 33.
Rg6 {[%clk 0:00:15.4]} 33... g3 {[%clk 0:00:28.2]} 34. b4 {[%clk 0:00:14.9]}
34... Be7 {[%clk 0:00:19.2]} 35. b5 {[%clk 0:00:14.6]} 35... h4 {[%clk
0:00:18.2]} 36. Ke2 {[%clk 0:00:14.8]} 36... h3 {[%clk 0:00:17.6]} 37. b6 {[%clk
0:00:14.2]} 37... Kg2 {[%clk 0:00:16.3]} 38. Bf2 {[%clk 0:00:11.6]} 38... Bh4
{[%clk 0:00:13.4]} 39. b7 {[%clk 0:00:10.5]} 39... h2 {[%clk 0:00:13.2]} 40.
Bxg3 {[%clk 0:00:07.3]} 40... Bxg3 {[%clk 0:00:12.1]} 41. Rxg3+ {[%clk
0:00:02.9]} 41... Kxg3 {[%clk 0:00:11.5]} 42. b8=Q {[%clk 0:00:03]} 42... Rxb8
{[%clk 0:00:10.5]} 43. b3 {[%clk 0:00:02.9]} 43... h1=Q {[%clk 0:00:10.7]} 44.
c4 {[%clk 0:00:02.9]} 44... Qf3+ {[%clk 0:00:11.2]} 45. Kd2 {[%clk 0:00:02.8]}
45... Qf2+ {[%clk 0:00:11.8]} 46. Kc3 {[%clk 0:00:03.1]} 46... Qd4+ {[%clk
0:00:12.2]} 47. Kc2 {[%clk 0:00:03.3]} 47... Rxb3 {[%clk 0:00:12.7]} 48. Kxb3
{[%clk 0:00:03.2]} 48... Qxd3+ {[%clk 0:00:13.6]} 49. Kb4 {[%clk 0:00:02.9]}
49... e4 {[%clk 0:00:14.5]} 50. c5 {[%clk 0:00:03.3]} 50... e3 {[%clk
0:00:15.4]} 51. c6 {[%clk 0:00:03.5]} 51... e2 {[%clk 0:00:16.3]} 52. Kc5 {[%clk
0:00:03.3]} 52... e1=Q {[%clk 0:00:17.2]} 53. c7 {[%clk 0:00:03.5]} 53... Qec3+
{[%clk 0:00:17.6]} 54. Kb6 {[%clk 0:00:03.9]} 54... Qd6+ {[%clk 0:00:17.8]} 55.
Ka7 {[%clk 0:00:03.8]} 55... Qcxc7+ {[%clk 0:00:17.7]} 56. Ka8 {[%clk
0:00:03.7]} 56... Qdd8# {[%clk 0:00:18.6]} 0-1

[Event "Early-Titled-Tuesday-Blitz-June-18-2024"]
[Site "Chess.com"]
[Date "2024.06.18"]
[Round "6"]
[White "RandomNoob04"]
[Black "FARIZA2018"]
[Result "1-0"]
[WhiteElo "2818"]
[BlackElo "2596"]
[TimeControl "180+1"]
[EndTime "9:10:15 PDT"]
[Termination "RandomNoob04 won by resignation"]

1. e4 {[%clk 0:03:00.9]} 1... e5 {[%clk 0:03:00.3]} 2. d4 {[%clk 0:03:01.2]}
2... Nc6 {[%clk 0:03:00.9]} 3. d5 {[%clk 0:03:00.8]} 3... Nce7 {[%clk
0:02:58.4]} 4. Nf3 {[%clk 0:03:01.3]} 4... d6 {[%clk 0:02:58.4]} 5. c4 {[%clk
0:03:01.1]} 5... Nf6 {[%clk 0:02:56.7]} 6. Nc3 {[%clk 0:03:01]} 6... Ng6 {[%clk
0:02:54.9]} 7. h3 {[%clk 0:02:58.5]} 7... Be7 {[%clk 0:02:54]} 8. Bd3 {[%clk
0:02:57.7]} 8... c6 {[%clk 0:02:50.4]} 9. O-O {[%clk 0:02:56.4]} 9... O-O {[%clk
0:02:49.9]} 10. b4 {[%clk 0:02:52.7]} 10... Bd7 {[%clk 0:02:37.9]} 11. a4 {[%clk
0:02:49.6]} 11... Rc8 {[%clk 0:02:37.2]} 12. Be3 {[%clk 0:02:43.9]} 12... cxd5
{[%clk 0:02:27.6]} 13. exd5 {[%clk 0:02:44]} 13... Nh5 {[%clk 0:02:18.5]} 14. c5
{[%clk 0:01:26.2]} 14... Nhf4 {[%clk 0:02:16.4]} 15. Ne4 {[%clk 0:01:16.6]}
15... f5 {[%clk 0:01:46.2]} 16. cxd6 {[%clk 0:01:12.9]} 16... Bh4 {[%clk
0:01:23.8]} 17. Nc5 {[%clk 0:01:12.9]} 17... Nxd3 {[%clk 0:01:14.6]} 18. Nxd3
{[%clk 0:01:02.5]} 18... e4 {[%clk 0:01:12.3]} 19. Nxh4 {[%clk 0:01:02.9]} 19...
Nxh4 {[%clk 0:01:00.8]} 20. Nf4 {[%clk 0:00:57.2]} 20... Qg5 {[%clk 0:01:00]}
21. Qh5 {[%clk 0:00:42.4]} 21... Nf3+ {[%clk 0:00:21.5]} 22. Kh1 {[%clk
0:00:42]} 22... Qxh5 {[%clk 0:00:21]} 23. Nxh5 {[%clk 0:00:42.9]} 23... Ne5
{[%clk 0:00:21]} 24. Nf4 {[%clk 0:00:38.8]} 24... Nc4 {[%clk 0:00:20.7]} 25.
Bxa7 {[%clk 0:00:36.5]} 25... b6 {[%clk 0:00:19]} 26. a5 {[%clk 0:00:37]} 26...
bxa5 {[%clk 0:00:17.3]} 27. bxa5 {[%clk 0:00:37.9]} 27... Nxd6 {[%clk
0:00:17.1]} 28. Rfc1 {[%clk 0:00:34]} 28... Bb5 {[%clk 0:00:16.5]} 29. Bc5
{[%clk 0:00:30.9]} 29... Rfd8 {[%clk 0:00:15.2]} 30. Ne6 {[%clk 0:00:30.2]}
30... Rd7 {[%clk 0:00:15]} 31. Nd4 {[%clk 0:00:23.4]} 31... Bd3 {[%clk
0:00:12.4]} 32. Bxd6 {[%clk 0:00:22.3]} 32... Rxc1+ {[%clk 0:00:12.2]} 33. Rxc1
{[%clk 0:00:23.2]} 33... Rxd6 {[%clk 0:00:12.8]} 34. Nxf5 {[%clk 0:00:23.9]}
34... Rf6 {[%clk 0:00:08.5]} 35. d6 {[%clk 0:00:16.6]} 35... Bb5 {[%clk
0:00:06.7]} 36. Rc8+ {[%clk 0:00:09.7]} 36... Kf7 {[%clk 0:00:06.7]} 37. Rc7+
{[%clk 0:00:10.1]} 37... Ke6 {[%clk 0:00:07]} 38. Nd4+ {[%clk 0:00:10.6]} 38...
Kxd6 {[%clk 0:00:07.4]} 39. Nxb5+ {[%clk 0:00:11.5]} 39... Kd5 {[%clk
0:00:07.6]} 40. Rxg7 {[%clk 0:00:10.1]} 40... Rxf2 {[%clk 0:00:07.5]} 41. a6
{[%clk 0:00:10.2]} 41... e3 {[%clk 0:00:06.6]} 42. a7 {[%clk 0:00:10.2]} 42...
Ra2 {[%clk 0:00:07.2]} 43. Re7 {[%clk 0:00:10.1]} 43... Ra1+ {[%clk 0:00:06.8]}
44. Kh2 {[%clk 0:00:10]} 44... Kc4 {[%clk 0:00:07.1]} 45. Rxe3 {[%clk 0:00:03]}
45... Kxb5 {[%clk 0:00:07.3]} 46. Re7 {[%clk 0:00:03.7]} 46... h5 {[%clk
0:00:07.5]} 47. Rh7 {[%clk 0:00:04.4]} 47... Kc6 {[%clk 0:00:05.8]} 48. Kg3
{[%clk 0:00:04.9]} 48... Ra3+ {[%clk 0:00:04.9]} 49. Kh4 {[%clk 0:00:05.2]}
49... Kd6 {[%clk 0:00:04.6]} 50. Kxh5 {[%clk 0:00:05.5]} 50... Ke6 {[%clk
0:00:05.1]} 51. h4 {[%clk 0:00:05.8]} 51... Kf6 {[%clk 0:00:05.1]} 52. g4 {[%clk
0:00:06.3]} 52... Ra5+ {[%clk 0:00:04.3]} 53. g5+ {[%clk 0:00:06.9]} 53... Kf5
{[%clk 0:00:04.9]} 54. Rf7+ {[%clk 0:00:04.9]} 54... Ke6 {[%clk 0:00:05.3]} 55.
Rb7 {[%clk 0:00:05.1]} 55... Kf5 {[%clk 0:00:05.2]} 56. Rb5+ {[%clk 0:00:04.7]}
1-0

[Event "Early-Titled-Tuesday-Blitz-June-18-2024"]
[Site "Chess.com"]
[Date "2024.06.18"]
[Round "6"]
[White "Sprinc1"]
[Black "pavelalexandru07"]
[Result "0-1"]
[WhiteElo "2225"]
[BlackElo "2459"]
[TimeControl "180+1"]
[EndTime "9:10:15 PDT"]
[Termination "pavelalexandru07 won by resignation"]

1. d4 {[%clk 0:03:00.9]} 1... d5 {[%clk 0:02:59.2]} 2. Nf3 {[%clk 0:03:00.5]}
2... Nf6 {[%clk 0:02:58.7]} 3. g3 {[%clk 0:03:00.6]} 3... c5 {[%clk 0:02:58.9]}
4. Bg2 {[%clk 0:03:00.1]} 4... cxd4 {[%clk 0:02:59.4]} 5. O-O {[%clk 0:03:00.1]}
5... h6 {[%clk 0:02:55]} 6. b3 {[%clk 0:02:59.2]} 6... e6 {[%clk 0:02:50.7]} 7.
Bb2 {[%clk 0:02:58.9]} 7... Bc5 {[%clk 0:02:48.1]} 8. Bxd4 {[%clk 0:02:48.8]}
8... Bxd4 {[%clk 0:02:45.7]} 9. Qxd4 {[%clk 0:02:49.7]} 9... O-O {[%clk
0:02:45.1]} 10. Rd1 {[%clk 0:02:44.2]} 10... Nc6 {[%clk 0:02:44.6]} 11. Qb2
{[%clk 0:02:44.1]} 11... Qe7 {[%clk 0:02:40.9]} 12. c4 {[%clk 0:02:33.4]} 12...
dxc4 {[%clk 0:02:36.8]} 13. bxc4 {[%clk 0:02:34.3]} 13... Qc7 {[%clk 0:02:14.8]}
14. Nc3 {[%clk 0:02:30.4]} 14... a6 {[%clk 0:02:13.2]} 15. Na4 {[%clk
0:02:18.9]} 15... Na5 {[%clk 0:02:10]} 16. Rac1 {[%clk 0:02:08.4]} 16... Bd7
{[%clk 0:02:05]} 17. Nb6 {[%clk 0:02:07.1]} 17... Rad8 {[%clk 0:02:04.7]} 18. c5
{[%clk 0:01:49.4]} 18... Bb5 {[%clk 0:01:14.3]} 19. a4 {[%clk 0:01:11.1]} 19...
Rxd1+ {[%clk 0:01:08.5]} 20. Rxd1 {[%clk 0:01:10.7]} 20... Qxc5 {[%clk
0:01:05.3]} 21. axb5 {[%clk 0:00:52.3]} 21... Qxb6 {[%clk 0:01:04.9]} 22. Rb1
{[%clk 0:00:47]} 22... Nc4 {[%clk 0:00:47.4]} 23. Qb4 {[%clk 0:00:46.2]} 23...
axb5 {[%clk 0:00:41.6]} 24. Qxc4 {[%clk 0:00:44.6]} 24... bxc4 {[%clk
0:00:31.5]} 25. Rxb6 {[%clk 0:00:45.5]} 25... Rc8 {[%clk 0:00:31]} 26. Nd4
{[%clk 0:00:40.7]} 26... c3 {[%clk 0:00:30]} 27. Nc2 {[%clk 0:00:40.5]} 27...
Rd8 {[%clk 0:00:26.6]} 28. Rb3 {[%clk 0:00:33]} 28... Rd1+ {[%clk 0:00:22.2]}
29. Bf1 {[%clk 0:00:32.8]} 29... Ne4 {[%clk 0:00:19.1]} 30. Kg2 {[%clk
0:00:23.2]} 30... Rc1 {[%clk 0:00:18.9]} 31. Ne3 {[%clk 0:00:16.6]} 31... c2
{[%clk 0:00:16.1]} 32. Nxc2 {[%clk 0:00:15]} 32... Rxf1 {[%clk 0:00:11.4]} 33.
Rxb7 {[%clk 0:00:13.4]} 33... Rxf2+ {[%clk 0:00:11.5]} 34. Kg1 {[%clk 0:00:12]}
34... Rxe2 {[%clk 0:00:12.1]} 35. Nd4 {[%clk 0:00:12]} 35... Rd2 {[%clk
0:00:12.6]} 36. Nf3 {[%clk 0:00:10.8]} 36... Ra2 {[%clk 0:00:12.9]} 37. Ne5
{[%clk 0:00:10.9]} 37... f6 {[%clk 0:00:12.2]} 38. Nf3 {[%clk 0:00:07.9]} 38...
e5 {[%clk 0:00:11.9]} 39. Rc7 {[%clk 0:00:06]} 39... h5 {[%clk 0:00:12]} 40. Rb7
{[%clk 0:00:05.8]} 40... Nd2 {[%clk 0:00:12]} 41. Nh4 {[%clk 0:00:05.4]} 41...
Ne4 {[%clk 0:00:11.3]} 42. Nf5 {[%clk 0:00:05.6]} 42... g5 {[%clk 0:00:09.5]}
43. Rg7+ {[%clk 0:00:05]} 43... Kf8 {[%clk 0:00:09.8]} 44. Rh7 {[%clk
0:00:05.4]} 44... Rf2 {[%clk 0:00:07.1]} 45. Nd6 {[%clk 0:00:05.1]} 45... Re2
{[%clk 0:00:07.2]} 46. Rf7+ {[%clk 0:00:03.1]} 46... Kg8 {[%clk 0:00:07.5]} 47.
Rd7 {[%clk 0:00:02.8]} 47... Nxd6 {[%clk 0:00:07.5]} 48. Rxd6 {[%clk 0:00:03.7]}
48... Kf7 {[%clk 0:00:07.6]} 49. Ra6 {[%clk 0:00:03.4]} 49... Kg6 {[%clk
0:00:07.6]} 50. h3 {[%clk 0:00:03.7]} 50... Rc2 {[%clk 0:00:06.7]} 51. Rb6
{[%clk 0:00:02.4]} 51... Kf5 {[%clk 0:00:06.7]} 52. Rb4 {[%clk 0:00:01.9]} 52...
e4 {[%clk 0:00:06.6]} 53. Rb5+ {[%clk 0:00:01.3]} 53... Ke6 {[%clk 0:00:07]} 54.
Ra5 {[%clk 0:00:01.5]} 54... f5 {[%clk 0:00:06.8]} 55. Rb5 {[%clk 0:00:01.1]}
55... Rd2 {[%clk 0:00:06.3]} 56. Ra5 {[%clk 0:00:01]} 56... e3 {[%clk
0:00:06.5]} 57. Ra6+ {[%clk 0:00:01.1]} 57... Ke5 {[%clk 0:00:06.7]} 58. Ra8
{[%clk 0:00:01.9]} 58... Ke4 {[%clk 0:00:07]} 59. Re8+ {[%clk 0:00:02.3]} 59...
Kf3 {[%clk 0:00:07.4]} 60. g4 {[%clk 0:00:02.7]} 60... hxg4 {[%clk 0:00:07.5]}
61. hxg4 {[%clk 0:00:02.7]} 61... f4 {[%clk 0:00:08.1]} 0-1